Cogmind - Beta 17.1 @@@ ROGUE MODE // 2026.09.02 @ 00:30:28 Player: LandRaider Result: Destroyed by S-27 Virus with Autogun Performance ------------- Evolutions (3) 1500 Regions Visited (8) 1600 Robots Destroyed (121) 605 Value Destroyed (3000) 3000 Prototype IDs (30) 600 Alien Tech Used (0) 0 Bonus (559) 559 TOTAL SCORE: 7864 Bonus ------- Follower Combat Kills 259 Aligned with FarCom 300 Cogmind --------- Core Integrity 0/700 Matter 450/450 Energy 150/150 System Corruption 2% Temperature Cool (0) Movement Core (600) Ox11 Location -7/Lower Caves Parts ------- > --- POWER (1) -------- Light Angular Momentum Engine > --- PROPULSION (4) --- (None) > --- UTILITY (4) ------ Large Storage Unit Large Matter Pod Visual Processing Unit > --- WEAPON (4) ------- Power Maul > --- INVENTORY (15) --- Light Nuclear Core Scrap Suit Experimental Sensor Array Weapon Cycler Advanced ECM Suite EM Disruption Field System Shield AWS/Thermal Peak State ------------ > --- POWER ------------ Heavy Deuterium Engine > --- PROPULSION ------- Light Treads Improved Treads Armored Treads Advanced Treads > --- UTILITY ---------- Advanced Heat Sink Large Storage Unit Trap Scanner Layered Light Armor Plating > --- WEAPON ----------- Beam Rifle Heavy Particle Cannon Minigun Power Maul > --- INVENTORY -------- Light Angular Momentum Engine Light Treads Scrap Suit Improved Heat Sink Large Matter Pod Experimental Sensor Array Improved EM Shotgun AWS/Thermal Light Cannon Light Cannon Advanced EMP Blaster Heavy Missile Launcher Heavy Missile Launcher [Rating: 45] Favorites ----------- Power Heavy Deuterium Engine Engine Heavy Deuterium Engine Power Core Light Nuclear Core Propulsion Light Treads Treads Light Treads Leg Aluminum Leg Utility Large Storage Unit Device Advanced Heat Sink Storage Large Storage Unit Processor Visual Processing Unit Protection Layered Light Armor Plating Weapon Beam Rifle Energy Gun Beam Rifle Energy Cannon Heavy Particle Cannon Ballistic Gun Minigun Ballistic Cannon Light Cannon Launcher Advanced EMP Blaster Impact Weapon Power Maul Build | -11 -10 -10 -10 -9 -8 -7 -7 -7 ------- Run | Yrd Mat Min Exi Min Mat Fac Low Low Slots Evolved 6 | . . . . . 4 2 . . Power . | . . . . . . . . . Propulsion 2 | . . . . . 1 1 . . Utility 2 | . . . . . 1 1 . . Weapon 2 | . . . . . 2 . . . Parts Attached 63 | 7 6 1 . 9 16 8 2 14 Power 7 | 1 . . . 2 3 1 . . Engine 5 | 1 . . . 1 2 1 . . Core 2 | . . . . 1 1 . . . Reactor . | . . . . . . . . . Propulsion 17 | 2 1 1 . 4 3 1 2 3 Treads 13 | 2 1 1 . 2 3 1 2 1 Leg 4 | . . . . 2 . . . 2 Wheel . | . . . . . . . . . Hover . | . . . . . . . . . Flight . | . . . . . . . . . Utility 14 | 2 2 . . . 3 3 . 4 Device 5 | 1 . . . . 2 1 . 1 Storage 5 | 1 2 . . . . . . 2 Processor 1 | . . . . . . . . 1 Hackware . | . . . . . . . . . Protection 3 | . . . . . 1 2 . . Artifact . | . . . . . . . . . Weapon 25 | 2 3 . . 3 7 3 . 7 Energy Gun 9 | 1 1 . . 3 2 . . 2 Energy Cannon 2 | . . . . . 1 . . 1 Ballistic Gun 3 | 1 1 . . . 1 . . . Ballistic Cannon 2 | . 1 . . . . . . 1 Launcher 7 | . . . . . 3 1 . 3 Special Weapon . | . . . . . . . . . Impact Weapon 2 | . . . . . . 2 . . Slashing Weapon . | . . . . . . . . . Piercing Weapon . | . . . . . . . . . Special Melee Weapon . | . . . . . . . . . Unidentified Prototypes 5 | . 1 . . . 2 2 . . Parts Lost 25 | . . . . 1 3 . . 21 Power 2 | . . . . . 1 . . 1 Propulsion 7 | . . . . . 1 . . 6 Utility 5 | . . . . 1 . . . 4 Weapon 11 | . . . . . 1 . . 10 Highest Loss Streak 14 | . . . . 1 2 . . 14 To Critical Strikes . | . . . . . . . . . Average Backups 12 | 3 11 15 14 13 12 12 13 11 Power 1 | . 1 1 1 1 . 1 1 1 Propulsion 1 | 1 3 4 3 2 1 1 1 . Utility 3 | . . 2 3 3 4 4 4 6 Weapon 5 | . 6 7 7 6 5 6 6 3 Tool/Special . | . . . . . . . . . Unused Backups 15 | . 2 1 2 2 . 1 . 7 Power 3 | . 1 . . . . 1 . 1 Propulsion 2 | . 1 . 1 . . . . . Utility 6 | . . . . . . . . 6 Weapon 4 | . . 1 1 2 . . . . Tool/Special . | . . . . . . . . . Average Slot Usage (%) 89 | . 99 100 100 88 84 99 99 55 Engine 8 | . 14 14 14 7 3 7 7 6 Core 1 | . . . . 6 4 . . . Treads 23 | . 28 28 28 18 24 30 29 4 Leg 1 | . . . . 9 . . . 5 Device 10 | . 14 14 14 2 5 14 15 2 Storage 11 | . 14 14 14 14 9 7 7 13 Protection 3 | . . . . . 8 7 7 . Energy Gun 10 | . 13 14 14 25 12 7 7 6 Energy Cannon 3 | . . . . . 2 7 7 1 Ballistic Gun 4 | . 9 . . . 5 7 7 . Ballistic Cannon 3 | . 4 14 14 2 6 . . . Launcher 1 | . . . . . 1 . . 5 Impact Weapon 2 | . . . . . . 6 6 . Peak Build Rating 45 | 7 9 10 11 16 41 45 45 44 Average Rating 26 | 5 7 9 10 13 35 42 44 23 On Entrance 19 | . 7 8 10 11 16 34 45 44 Avg Prop Armor Cover (%) 8 | . . . . 8 . . . . Naked Turns . | . . . . . . . . . Heaviest Build 57 | 13 30 30 30 31 48 56 53 57 Greatest Support 86 | 40 40 40 40 46 68 85 86 86 Greatest Overweight (x) 13 | . . . . 2 1 . . 13 Average Overweight (x) . | . . . . . . . . 3 Largest Inventory Capacity 15 | 8 15 15 15 15 15 15 15 15 Average Capacity 14 | 7 11 15 15 15 15 15 15 15 Most Carried 15 | 4 15 15 15 15 15 15 15 15 Average Carried 13 | 3 11 14 14 14 13 14 15 13 Final Capacity 15 | 8 15 15 15 15 15 15 15 15 Final Carried 15 | 4 15 15 15 15 15 15 15 10 Class Distribution -------------------- 47% | Mutant 13% | Scientist-Skirmisher 13% | Tank 9% | Skirmisher 6% | Commander-Tank 3% | Derelict-Mutant 3% | Scavenger-Mutant Dominant Class ---------------- Mutant | -10/Materials Mutant | -10/Mines Mutant | -10/Exiles Derelict-Mutant | -9/Mines Skirmisher | -8/Materials Scientist-Skirmisher | -7/Factory Tank | -7/Lower Caves Mutant | -7/Lower Caves Resources | -11 -10 -10 -10 -9 -8 -7 -7 -7 ----------- Run | Yrd Mat Min Exi Min Mat Fac Low Low Matter Collected 2021 | 273 268 130 . 111 544 184 80 431 Remotely . | . . . . . . . . . Salvage Created 4085 | 205 388 119 . 235 1660 379 279 820 Parts 220 | 17 27 6 . 11 97 17 14 31 Haulers Intercepted 8 | . 1 . . . 6 1 . . Recyclers Shooed 2 | . . . . . 2 . . . Parts Field Recycled . | . . . . . . . . . Retrieved Matter . | . . . . . . . . . Parts Self-Destructed 34 | . . . . . . . 9 25 Prevented 4 | . . . . . . . . 4 Parts Restored . | . . . . . . . . . Kills | -11 -10 -10 -10 -9 -8 -7 -7 -7 ------- Run | Yrd Mat Min Exi Min Mat Fac Low Low Combat Hostiles Destroyed 67 | . 8 2 . 5 22 4 5 21 Guns 36 | . 7 1 . 5 16 2 3 2 Cannons 11 | . 1 1 . . 3 2 2 2 AOE 20 | . . . . . 3 . . 17 Classes Destroyed 17 | 3 5 . . . 4 1 1 3 Worker 17 | 2 1 1 . . 10 3 . . Builder 9 | . . . . . 8 1 . . Tunneler 4 | 4 . . . . . . . . Hauler 8 | . 1 . . . 6 1 . . Recycler 5 | 1 . 1 . . 3 . . . Mechanic 2 | . . . . . 1 1 . . Operator 3 | . 2 . . . 1 . . . Watcher 5 | . 2 . . . 3 . . . Swarmer 14 | . 3 2 . . 5 . . 4 Grunt 41 | . 5 . . 5 13 3 3 12 Brawler 1 | . . . . . . . . 1 Duelist 2 | . . . . . . . . 2 Protector 1 | . . . . . . . . 1 Sentry 6 | . . . . . 4 . 1 1 Hunter 1 | . . . . . 1 . . . Programmer 1 | . . . . . . 1 . . Mutant 1 | . . . . . . . 1 . Best Kill Streak 26 | 3 2 2 . 3 26 4 2 9 Combat Bots Only 12 | . 2 2 . 3 12 3 2 9 Max Kills in Single Turn 4 | 1 1 1 . 1 3 2 1 4 Gunslinging . | . . . . . . . . . Exploded 4 | . . . . . 1 . . 4 Melee . | . . . . . . . . . Uniques/NPCs Destroyed . | . . . . . . . . . Combat | -11 -10 -10 -10 -9 -8 -7 -7 -7 -------- Run | Yrd Mat Min Exi Min Mat Fac Low Low Hostile Shots Fired 420 | . 35 5 . 60 66 8 58 188 Missed 125 | . 15 3 . 14 20 5 21 47 Hits 295 | . 20 2 . 46 46 3 37 141 Melee 9 | . . . . . . . . 9 Projectile 286 | . 20 2 . 46 46 3 37 132 AOE 1 | . . 1 . . . . . . Critical Strikes 13 | . . . . . 2 . 2 9 Damage Taken 5140 | . 234 47 . 582 1007 46 383 2841 Core 913 | . 66 . . 90 46 . 43 668 Absorbed by Shields . | . . . . . . . . . Core Remaining (%) 76 | 100 . . . 37 91 . . . Volleys Fired 209 | 15 40 9 . 18 76 14 10 27 Largest 4 | 2 2 2 . 2 4 3 3 3 Hottest 186 | 60 70 70 . 121 186 156 156 156 Shots Fired 455 | 28 75 17 . 36 187 42 30 40 Gun 328 | 28 71 8 . 33 128 28 20 12 Cannon 103 | . 4 9 . 3 49 14 10 14 Launcher 24 | . . . . . 10 . . 14 Special . | . . . . . . . . . Kinetic 164 | 15 40 9 . 3 66 14 10 7 Thermal 250 | 13 35 8 . 19 111 28 20 16 Explosive 18 | . . . . . 10 . . 8 Electromagnetic 23 | . . . . 14 . . . 9 Robot Hit Streak 17 | 4 7 3 . 8 17 8 9 6 Robot Miss Streak 5 | 2 4 4 . 4 5 3 2 2 Penetration Max . | . . . . . . . . . Secondary Targets 3 | . . . . 3 . . . . Max Gunslinging Chain 1 | . . . . 1 . . . . Autonomous 70 | . . . . . 70 . . . Shots Hit Robots 273 | 15 46 8 . 23 110 24 20 27 Core Hits 188 | 10 23 6 . 12 76 11 11 39 Critical Kills . | . . . . . . . . . Critical Parts Destroyed 1 | 1 . . . . . . . . Critical Strikes 5 | 1 . 1 . . 3 . . . Burn 3 | . . . . . 3 . . . Destroy 1 | 1 . . . . . . . . Blast 1 | . . 1 . . . . . . Melee Attacks 11 | . . . . . . 9 1 1 Impact 11 | . . . . . . 9 1 1 Slashing . | . . . . . . . . . Piercing . | . . . . . . . . . Sneak Attacks 1 | . . . . . . 1 . . Combat Hostiles . | . . . . . . . . . Follow-up Attacks . | . . . . . . . . . Damage Inflicted 7951 | 141 573 116 . 343 3806 614 384 1974 Guns 3891 | 141 516 43 . 324 2211 278 234 144 Cannons 1293 | . 55 73 . 19 549 206 150 241 Explosions 2590 | . . . . . 1046 . . 1544 Melee 175 | . . . . . . 130 . 45 Ramming 2 | . 2 . . . . . . . Kinetic 1571 | 75 305 73 . 19 746 145 118 90 Thermal 3436 | 66 266 43 . 125 2014 339 266 317 Explosive 1989 | . . . . . 1046 . . 943 Electromagnetic 778 | . . . . 199 . . . 579 Impact 175 | . . . . . . 130 . 45 Slashing . | . . . . . . . . . Piercing . | . . . . . . . . . Highest Corruption 7 | . . . . . 7 . . 2 Average Corruption 3 | . . . . . 7 . . 1 Corruption Purged . | . . . . . . . . . Corruption Blocked . | . . . . . . . . . Effects 45 | . . . . . 19 . . 26 Message Errors 15 | . . . . . 6 . . 9 Matter Fused 8 | . . . . . 3 . . 5 Heat Flow Errors 7 | . . . . . 3 . . 4 Energy Discharges 5 | . . . . . 2 . . 3 Data Loss (minor) 4 | . . . . . 2 . . 2 Data Loss (major) 2 | . . . . . 1 . . 1 Misfires 2 | . . . . . 1 . . 1 Alerts 2 | . . . . . 1 . . 1 Overload Shots . | . . . . . . . . . Overflow Damage 177 | . . . . . 49 95 . 33 Projectiles 18 | . . . . . . 5 . 13 Explosions 49 | . . . . . 49 . . . Melee 110 | . . . . . . 90 . 20 Knockbacks 5 | . . . . . 4 . . 1 Impact . | . . . . . . . . . Kinetic 5 | . . . . . 4 . . 1 Secondary . | . . . . . . . . . Self-Inflicted Damage 187 | . . . . . 29 . . 158 Shots 8 | . . . . . 1 . . 7 Rammed 1 | . 1 . . . . . . . Targets Rammed 1 | . 1 . . . . . . . Kicked . | . . . . . . . . . Crushed . | . . . . . . . . . Highest Temperature 252 | 40 27 18 . 252 205 99 171 225 Average Temperature 67 | 18 10 8 . 117 78 37 72 78 Received Heat Transfer 1685 | . 51 . . 321 333 18 123 839 Effects 2 | . . . . 2 . . . . Interference 2 | . . . . 2 . . . . Siege Activations . | . . . . . . . . . Martial Activations . | . . . . . . . . . Shielding Activations . | . . . . . . . . . Robots Disrupted . | . . . . . . . . . Combat Hostiles . | . . . . . . . . . Robots Corrupted . | . . . . . . . . . Combat Hostiles . | . . . . . . . . . Parts Fried . | . . . . . . . . . Impact Corruptions 3 | . . . . . . 2 . 1 Robots Melted . | . . . . . . . . . Combat Hostiles . | . . . . . . . . . Parts Melted 13 | . . . . . 7 2 2 2 Heat Transferred 6028 | 150 600 100 . 299 3256 629 518 476 Parts Sabotaged . | . . . . . . . . . Parts Stolen . | . . . . . . . . . Parts Stripped . | . . . . . . . . . Power Chain Reactions 2 | . . . . . . . . 2 Alert | -11 -10 -10 -10 -9 -8 -7 -7 -7 ------- Run | Yrd Mat Min Exi Min Mat Fac Low Low Maximum Alert Level 1 | . . . . . 1 . . . Low Security (%) 89 | 100 100 100 . 100 28 100 . . Level 1 10 | . . . . . 71 . . . Level 2 . | . . . . . . . . . Level 3 . | . . . . . . . . . Level 4 . | . . . . . . . . . Level 5 . | . . . . . . . . . High Security . | . . . . . . . . . Max Security . | . . . . . . . . . Peak Influence 337 | 10 103 70 . 60 337 173 . . Initial 120 | . 3 17 . . . 120 . . Average 63 | 1 29 8 . 10 218 70 . . Influence Increases 2746 | 35 343 122 . 135 899 388 272 552 Destroy 0b10 Robot/C 1520 | . 160 60 . 100 520 140 120 420 Destroy 0b10 Robot/NC 275 | 35 30 10 . . 160 35 . 5 Destroy Leader 314 | . 46 20 . 20 128 40 10 50 Allied During Kill 140 | . . 2 . . 13 41 52 32 Successful Hack 99 | . 46 . . . 20 33 . . Select Force Hacks 150 | . 60 . . . . 90 . . Destroy Structure 68 | . 1 . . . 58 9 . . Lose Combat Pursuer 180 | . . 30 . 15 . . 90 45 Influence Decreases 2709 | 30 302 168 . 135 634 564 361 515 Entered New Map 210 | . 2 29 . . . 145 34 . Time Decay 1849 | 30 300 139 . 125 324 339 314 278 Lost Part 209 | . . . . 10 22 . . 177 Lost Ally 193 | . . . . . 40 80 13 60 Purge Threat 248 | . . . . . 248 . . . Squads Dispatched 16 | . 3 . . . 5 7 . 1 Investigation 6 | . 2 . . . . 4 . . Extermination 2 | . . . . . . 2 . . Reinforcement 4 | . 1 . . . 2 1 . . Assault 1 | . . . . . . . . 1 Garrison 3 | . . . . . 3 . . . Intercept . | . . . . . . . . . Searches Triggered . | . . . . . . . . . Construction Impeded 1 | . . . . . 1 . . . Haulers Reinforced . | . . . . . . . . . Active Scanning Responses . | . . . . . . . . . Cargo Convoy Interrupts . | . . . . . . . . . Stealth | -11 -10 -10 -10 -9 -8 -7 -7 -7 --------- Run | Yrd Mat Min Exi Min Mat Fac Low Low Distress Signals 3 | . 1 . . . 2 . . . Communications Jammed . | . . . . . . . . . Distress Signals . | . . . . . . . . . Times Spotted 103 | . 15 5 . 6 33 6 12 26 Peak Tracking Total 8 | . 4 3 . 3 8 1 3 8 Tactical Retreats 7 | . . 1 . 1 . . 3 2 Traps | -11 -10 -10 -10 -9 -8 -7 -7 -7 ------- Run | Yrd Mat Min Exi Min Mat Fac Low Low Traps Triggered 1 | . 1 . . . . . . . Indirectly . | . . . . . . . . . Trap Hack Attempts . | . . . . . . . . . Triggered . | . . . . . . . . . Disarmed . | . . . . . . . . . Reprogrammed . | . . . . . . . . . Reused . | . . . . . . . . . Traps Extracted . | . . . . . . . . . Installed . | . . . . . . . . . Triggered . | . . . . . . . . . Machines | -11 -10 -10 -10 -9 -8 -7 -7 -7 ---------- Run | Yrd Mat Min Exi Min Mat Fac Low Low Machines Disabled 2 | . . . . . . . 1 1 Max in Single Turn 1 | . . . . . . . 1 1 Garrison Access 1 | . . . . . . 1 . . Machines Repaired . | . . . . . . . . . Machines Dismantled . | . . . . . . . . . Machines Sabotaged . | . . . . . . . . . Overloaded Fab Kills . | . . . . . . . . . Hacking | -11 -10 -10 -10 -9 -8 -7 -7 -7 --------- Run | Yrd Mat Min Exi Min Mat Fac Low Low Machines Accessed 29 | . 8 . 2 . 5 12 2 . Terminals 13 | . 6 . . . 4 3 . . Fabricators 3 | . . . . . . 3 . . Repair Stations . | . . . . . . . . . Recycling Units 6 | . 2 . . . . 4 . . Scanalyzers 2 | . . . . . 1 1 . . Garrison Access 1 | . . . . . . 1 . . Total Hacks 94 | . 21 . 24 . 16 27 6 . Successful 65 | . 11 . 24 . 9 15 6 . Failed 29 | . 10 . . . 7 12 . . Catastrophic 3 | . 1 . . . . 2 . . Database Lockouts . | . . . . . . . . . Manual 21 | . 6 . 1 . 4 10 . . Terminals 42 | . 19 . . . 13 10 . . Fabricators 6 | . . . . . . 6 . . Repair Stations . | . . . . . . . . . Recycling Units 10 | . 2 . . . . 8 . . Scanalyzers 5 | . . . . . 3 2 . . Garrison Access 1 | . . . . . . 1 . . Terminal Hacks 45 | . 7 . 24 . 4 4 6 . Record 28 | . . . 23 . . . 5 . Robot Analysis 3 | . 2 . . . . 1 . . Prototype ID Bank 1 | . 1 . . . . . . . Open Door 1 | . . . . . . . 1 . Open DSF 1 | . . . . . . 1 . . Terminal Index 1 | . . . . . 1 . . . Alert Level 1 | . . . . . 1 . . . Unreport Threat 2 | . . . . . 2 . . . Surveillance Status 1 | . 1 . . . . . . . Patrol Status 1 | . 1 . . . . . . . Transport Status 2 | . 1 . . . . 1 . . Assault Status 1 | . 1 . . . . . . . Recall Investigation 1 | . . . . . . 1 . . Proto ID Catalog 1 | . . . 1 . . . . . Fabricator Hacks 2 | . . . . . . 2 . . Network Status 1 | . . . . . . 1 . . Build 1 | . . . . . . 1 . . Repair Station Hacks . | . . . . . . . . . Recycling Unit Hacks 1 | . . . . . . 1 . . Retrieve Components 1 | . . . . . . 1 . . Scanalyzer 4 | . . . . . 3 1 . . Retrieve Study 4 | . . . . . 3 1 . . Garrison Access Hacks 1 | . . . . . . 1 . . Seal Access 1 | . . . . . . 1 . . Unauthorized Hacks 12 | . 4 . . . 2 6 . . Terminals 5 | . 2 . . . 2 1 . . Botnet 5 | . 2 . . . 2 1 . . Fabricators 1 | . . . . . . 1 . . Haulers 1 | . . . . . . 1 . . Repair Stations . | . . . . . . . . . Recycling Units 6 | . 2 . . . . 4 . . Reject 1 | . . . . . . 1 . . Tunnel 5 | . 2 . . . . 3 . . Scanalyzers . | . . . . . . . . . Garrison Access . | . . . . . . . . . Data Cores Recovered 2 | . 1 . . . 1 . . . Used 1 | . 1 . . . . . . . Hacking Detections 17 | . 6 . . . 5 6 . . Full Trace Events 2 | . . . . . 1 1 . . Feedback Events . | . . . . . . . . . Feedback Blocked . | . . . . . . . . . Robot Schematics Acquired . | . . . . . . . . . Robots Built 4 | . . . . . . 4 . . Authchips . | . . . . . . . . . Time 67 | . . . . . . 67 . . Total Robot Build Rating 16 | . . . . . . 16 . . Part Schematics Acquired . | . . . . . . . . . Parts Built . | . . . . . . . . . Authchips . | . . . . . . . . . Time . | . . . . . . . . . Total Part Build Rating . | . . . . . . . . . Part Studies Acquired 4 | . . . . . 3 1 . . Parts Repaired . | . . . . . . . . . Time . | . . . . . . . . . Parts Recycled . | . . . . . . . . . Recycled Matter . | . . . . . . . . . Retrieved Matter . | . . . . . . . . . Retrieved Components 2 | . . . . . . 2 . . Parts Scanalyzed . | . . . . . . . . . Part Schematics Acquired . | . . . . . . . . . Parts Damaged . | . . . . . . . . . Bothacking | -11 -10 -10 -10 -9 -8 -7 -7 -7 ------------ Run | Yrd Mat Min Exi Min Mat Fac Low Low Used RIF Installer . | . . . . . . . . . Robots Hacked . | . . . . . . . . . Non-combat . | . . . . . . . . . Combat . | . . . . . . . . . Robot Hacks Applied . | . . . . . . . . . Relay Couplers Released . | . . . . . . . . . Fabnet Peak Effective % . | . . . . . . . . . Robots Rewired 4 | . . . . . . . 4 . Allies Hacked . | . . . . . . . . . Hacks Repelled . | . . . . . . . . . Allies | -11 -10 -10 -10 -9 -8 -7 -7 -7 -------- Run | Yrd Mat Min Exi Min Mat Fac Low Low Total Allies 14 | . . 1 . 3 . 4 6 . Largest Group 6 | . . 1 . 3 3 4 6 3 Highest-Rated Group 115 | . . 31 . 40 40 48 115 48 Highest-Rated Ally 31 | . . 31 . 16 16 12 31 16 Total Orders . | . . . . . . . . . Ally Attacks 73 | . . 4 . . 11 35 14 9 Total Damage 926 | . . 43 . . 164 347 233 139 Kills 12 | . . 1 . . 4 4 2 1 Allies Corrupted . | . . . . . . . . . Allies Melted . | . . . . . . . . . Intel | -11 -10 -10 -10 -9 -8 -7 -7 -7 ------- Run | Yrd Mat Min Exi Min Mat Fac Low Low Active Infowar (turns) 7962 | 3 1106 835 804 167 . 1734 1713 1600 Optics 1329 | . . . . . . . . 1329 Traps 3718 | . . . . . . 1734 1713 271 Seismic 2915 | 3 1106 835 804 167 . . . . Robot Analysis Total 3 | . 2 . . . . 1 . . Derelict Logs Recovered 6 | . . . . 1 . . 3 2 Drone Launches . | . . . . . . . . . Drone Recoveries . | . . . . . . . . . Exploration | -11 -10 -10 -10 -9 -8 -7 -7 -7 ------------- Run | Yrd Mat Min Exi Min Mat Fac Low Low Turns Passed 9832 | 159 1106 835 804 844 824 1735 1713 1812 Spaces Moved 4987 | 69 577 495 502 450 378 1007 1007 502 Core 28 | 4 . . . . . . . 24 Treads 4480 | 65 577 495 502 317 378 1007 1007 132 Legs 479 | . . . . 133 . . . 346 Wheels . | . . . . . . . . . Hover . | . . . . . . . . . Flight . | . . . . . . . . . Fastest Speed 50 | 50 160 160 160 160 152 156 155 162 Average Speed 178 | 153 160 160 160 170 159 156 160 342 Slowest Speed 700 | 160 160 160 160 260 232 158 162 700 Overloaded Moves . | . . . . . . . . . Propulsion Burnouts . | . . . . . . . . . Robots Hopped . | . . . . . . . . . Potential Cave-ins . | . . . . . . . . . Cave-ins Triggered 1 | . . . . . 1 . . . Exploration Rate (%) 62 | 5 96 84 92 88 29 23 95 54 Regions Visited 8 Branch Regions 5 Pre-discovered Areas 9 | . 2 . 1 . . 3 1 2 Known Exits Taken 1 | . . . . . 1 . . . Unknown Exits Taken 7 | 1 1 1 1 1 . 1 1 . Scrap Searched 9 | . . 1 . 2 . . 4 2 Spaces Dug 8 | . . . . . . 8 . . Terrain Destroyed 199 | . . . . . 89 8 . 102 Melee 8 | . . . . . . 8 . . Projectile 18 | . . . . . 16 . . 2 AOE 173 | . . . . . 73 . . 100 Terrain Rammed . | . . . . . . . . . Walls Destroyed . | . . . . . . . . . Machines Disabled . | . . . . . . . . . Actions | -11 -10 -10 -10 -9 -8 -7 -7 -7 --------- Run | Yrd Mat Min Exi Min Mat Fac Low Low Total 5558 | 94 688 524 504 494 493 1126 1081 554 Wait 164 | . 43 13 . 3 5 76 23 1 Move 4979 | 68 576 494 501 449 377 1006 1006 502 Hop . | . . . . . . . . . Pick Up 39 | 4 13 3 1 2 6 3 1 6 Fast Attach 34 | 7 2 . . 6 7 4 3 5 Attach 20 | . . . . . 7 2 . 11 Detach . | . . . . . . . . . Swap 22 | . 5 1 . 4 6 4 1 1 Drop 46 | . 8 4 2 12 9 8 3 . Fire 209 | 15 40 9 . 18 76 14 10 27 Melee 11 | . . . . . . 9 1 1 Ram . | . . . . . . . . . Kick . | . . . . . . . . . Crush 1 | . 1 . . . . . . . Escape Stasis . | . . . . . . . . . Rewire 33 | . . . . . . . 33 . Trap . | . . . . . . . . . Miscellaneous . | . . . . . . . . . Route ------- -11/Scrapyard -10/Materials (discovered 5 exits: [*Mat x3] / [*Min x2]) -10/Mines (discovered 3 exits: [*Mat] / *Exi / [*Sub]) -10/Exiles (discovered 2 exits: [*Min x2]) -9/Mines -8/Materials (discovered 2 exits: *Fac x2) -7/Factory -7/Lower Caves -7/Lower Caves (discovered 1 exit: [*Fac]) History --------- Turn | Location | Event 10 | -11/Scrapyard | Discovered new exit (range 15) 160 | -11/Scrapyard | Entered Materials 323 | -10/Materials | Build established: Mutant 338 | -10/Materials | Discovered new exit (range 16) 513 | -10/Materials | Discovered new exit (range 7) 567 | -10/Materials | Discovered new exit (range 5) 844 | -10/Materials | Discovered new exit (range 11) 1100 | -10/Materials | Discovered new exit (range 16) 1266 | -10/Materials | Entered Mines 1267 | -10/Mines | Assembled infested the area 1338 | -10/Mines | Met a Derelict testing a Signal Generator 1396 | -10/Mines | Received a Rocket Launcher from a helpful Derelict 1605 | -10/Mines | Found a damaged Exp. Sensor Array with a note attached 1608 | -10/Mines | Found Prototype Device 1751 | -10/Mines | Discovered new exit (range 4) 1978 | -10/Mines | Found a hidden stash of uninstalled traps 2066 | -10/Mines | Discovered new exit (range 10) 2095 | -10/Mines | Deemed a non-threat by the Exiles lab entrance 2095 | -10/Mines | Discovered new exit (range 5) 2101 | -10/Mines | Entered Exiles 2125 | -10/Exiles | Discovered new exit (range 15) 2149 | -10/Exiles | Met 8R-AWN 2177 | -10/Exiles | Met EX-HEX 2237 | -10/Exiles | Met EX-DEC 2270 | -10/Exiles | Visited The Gauntlet 2500 | -10/Exiles | Met EX-BIN 2522 | -10/Exiles | Aligned with FarCom system 2524 | -10/Exiles | Given EX-Vault access code 2610 | -10/Exiles | Opened EX-Vault 2624 | -10/Exiles | Found AWS/Thermal 2657 | -10/Exiles | Warned to stay clear of 0b10 Research branches 2723 | -10/Exiles | Learned location of Zion (-6) 2767 | -10/Exiles | Discovered new exit (range 14) 2905 | -10/Exiles | Left Exiles lab with AWS/Thermal 2905 | -10/Exiles | Entered Mines 2941 | -9/Mines | Learned location of 1 exit from Materials 2961 | -9/Mines | Found a Scrap Suit stashed away for nefarious purposes 2966 | -9/Mines | Found Scrap Suit 3143 | -9/Mines | Discovered new exit (range 13) 3307 | -9/Mines | Core integrity fell below 50% 3371 | -9/Mines | Found DCF Scrap (13 items) 3493 | -9/Mines | Assisted by bots powering up and referring to "LRC-V3" 3670 | -9/Mines | Build established: Derelict-Mutant 3749 | -9/Mines | Entered Materials 3749 | -8/Materials | Accompanied by 3 allies 3749 | -8/Materials | Evolved 4 slots: Propulsion x1, Utility x1, Weapon x2 3750 | -8/Materials | Identified exit to Factory 3842 | -8/Materials | Garrison activated, responded to threat 3886 | -8/Materials | Lost 3 allies 3891 | -8/Materials | Crushed by falling debris 3929 | -8/Materials | Destroyed 12 combat bots 4198 | -8/Materials | Build established: Skirmisher 4305 | -8/Materials | AWS/Thermal suddenly broke down 4479 | -8/Materials | Discovered exit to Factory (range 16) 4573 | -8/Materials | Entered Factory 4573 | -7/Factory | Evolved 2 slots: Propulsion x1, Utility x1 4633 | -7/Factory | Identified exit to DSF 4718 | -7/Factory | Fabricated S-27 Virus (x4) 5118 | -7/Factory | Build established: Scientist-Skirmisher 5344 | -7/Factory | Discovered new exit (range 8) 5538 | -7/Factory | Found Prototype Launcher 5538 | -7/Factory | Identified Rocket Array 6062 | -7/Factory | Lost 4 allies 6308 | -7/Factory | Entered Lower Caves 6313 | -7/Lower Caves | Learned Factory emergency access door positions 6320 | -7/Lower Caves | Attracted the attention of an 0b10 checkpoint 6517 | -7/Lower Caves | Learned 4 Factory zone layouts 6597 | -7/Lower Caves | Build established: Tank 6722 | -7/Lower Caves | Learned location of 1 exit from Proximity Caves 6857 | -7/Lower Caves | Discovered new exit (range 14) 6880 | -7/Lower Caves | Attacked by a delusional Derelict stockpiling Unaware 7178 | -7/Lower Caves | Entered an active Warlord outpost 7185 | -7/Lower Caves | A Commander dispatched an escort 7205 | -7/Lower Caves | Learned location of Armory (-3) 7205 | -7/Lower Caves | Learned location of 1 exit from Factory 7249 | -7/Lower Caves | Build established: Commander-Tank 7857 | -7/Lower Caves | Build established: Tank 8021 | -7/Lower Caves | Entered another Lower Caves area 8021 | -7/Lower Caves | Accompanied by 5 allies 8022 | -7/Lower Caves | Commander's escort returned to base 8022 | -7/Lower Caves | Commander's escort returned to base 8026 | -7/Lower Caves | Discovered new exit (range 7) 8237 | -7/Lower Caves | Attracted the attention of an 0b10 outpost 8253 | -7/Lower Caves | Lost 3 allies 8296 | -7/Lower Caves | Core integrity fell below 50% 8320 | -7/Lower Caves | Destroyed 9 combat bots 8323 | -7/Lower Caves | Lost 14 parts (4n3u7w) 8544 | -7/Lower Caves | Build established: Mutant 9001 | -7/Lower Caves | Encountered a Warlord checkpoint 9619 | -7/Lower Caves | Lost 3 parts (1p1n1w) 9817 | -7/Lower Caves | Core integrity fell below 20% 9833 | -7/Lower Caves | Destroyed by S-27 Virus with Autogun Last Messages --------------- 09624_ Particle Gun fries itself beyond repair. 09624_ Acquired 36 matter. 09625_ Imp. Heat Sink fries itself beyond repair. 09636_ Acquired Aluminum Leg. 09664_ Acquired 12 matter. 09665_ System corrupted: Matter fused (-5). 09665_ Acquired 5 matter. 09707_ System corrupted: Matter fused (-10). 09788_ System corrupted: Component data lost. 09797_ Particle Gun destroyed. 09806_ Destroyed VTOL Module. 09808_ S-27 Virus destroyed. 09813_ Hvy. Ion Cannon destroyed. 09815_ Aluminum Leg destroyed. 09817_ VTOL Module fries itself beyond repair. 09821_ Lgt. Nuclear Core fries itself beyond repair. 09825_ Acquired 27 matter. 09827_ Com. Matter Pod destroyed. 09831_ Destroyed VTOL Module. 09831_ S-27 Virus system corrupted by crushing effect. Map ----- +----------------------------------------------------+ | ??????????????????????????????????????????????##?? | | ??????????????????????????????????????????????# ## | | ??????????????????????? % ????????????????????# | | ???????????????????????% #???????????????????# | | ??????????????????????# ## ?????????????????# | | ?????????????????????? % ???????????????# | | ?????????????????????? % ?? ????????????# | | ?????????????????????? % % #?# ??????###### | | ?????????????????????? % % ## ?????## | | ?????????????????????? %% ????## | | ?????????????????????? % % #???# | | ??????????????????????# % #????# | | ??????????????????????# ?????#### | | ??????????????????????# ??????????# | | ?????????????????????? #??????????## | | ??????????????????????# #???????????# | | ?????????????????????## #???????????# | | ????????????????????## #???# ???# ### | | ???????????????????## #??# ???##???# | | ??????????????????## ### #????????# | | ?????????????????## #?????????# | | ????????????????## ### #????####?# | | ????????????????# ##????? #????## ### | | ????????????????# ##?????# #???## | | ????????????????# ## ######## #???## | | ????????????????# ?##s@ ## #????# | | ????????????????# #??## s #?????# | | ????????????????# ???## s #?????# | | ????????????????## #??## #?????## | | ?????????????????##??## ##??????## # | | ?????????????????????# #????????# # | | ?????????????????????# ## ########## # | | ??????????????????# ### # | | ??????????????????# ### # | | ??????????????????# #####?# ########## # | | ??????????????????# ??????# #????????# ## | | ?????????????????? ???????# #???????? #? | | ?????????????????#????????### ## ##???????? ? | | ????????????????????????????###### #???????? | | ?????????????????????????????????###???????? | | ???????????????????????????????????????????? | | ??????????????????????????????????????????? | | ??????????????????????????????????????????? | | ??????????????????????????????????????????? | | ??????????????????????????????????????????? | | ???????????????????????????????????????????# | | ????????????????????????????????????????????? | | ????????????????????????????????????????????? ### | | ?????????????????????????????????????????????????? | | ?????????????????????????????????????????????????? | +----------------------------------------------------+ Best States ------------- Heat Dissipation 53 Energy Generation 18 Energy Capacity 310 Matter Stores 570 Matter Capacity 600 Sight Range 18 Terrain Scan Density 10 Armor Coverage 225 Evasion (%) 40 Recoil Reduction 4 Item Schematics ----------------- None Robot Schematics ------------------ None Fabricated ------------ S-27 Virus | x4 | -7/Factory | Preloaded Repaired ---------- Nothing Studied --------- Imp. Treads | -8/Materials | Hacked Lgt. Treads | -8/Materials | Hacked Adv. Treads | -8/Materials | Hacked Hvy. Flail | -7/Factory | Hacked Alien Tech Used ----------------- None Achievements -------------- Drive-By Challenges ------------ None Game ------ Seed FissionWeightDiverter Manual? 0 Play Time 01:01:24 Cumulative 134.8 hours Start 2026.09.01 @ 23:21:21 End 2026.09.02 @ 00:30:28 Sessions 1 Manual Loads 0 Difficulty Rogue Special Mode None Game No. 116 Rogue 114 Adventurer 2 Explorer 0 Win Type - Total 0 Types 0/0/0/0/0/0/0/0/0/0 Lore% 59 Gallery% 50 Achievement% 41 Wizard Run 0 Options --------- Layout 0 ASCII 0 Keyboard 0 Movement Mouse Keybinds 0 Fullscreen 2 Font 24/Smallcaps Map View 76x50 Zoom Use 0% Tactical HUD 1 Map Filters NONE Filters NONE Steam 1 RUN: 4c961701-cd15-450e-a03f-8cf8079a9abd